[Event "RUDAR XXII-IM 2024"]
[Site "Pozarevac"]
[Date "2024.02.15"]
[Round "9.5"]
[White "Popchev, Milko"]
[Black "Karamsetty, Jeevan"]
[Result "1/2-1/2"]
[ECO "B07"]
[WhiteElo "2193"]
[BlackElo "2211"]
[Annotator "RC"]
[PlyCount "122"]
[EventDate "2024.02.12"]
[EventType "tourn"]
[EventCountry "SRB"]
[SourceTitle "playchess.com"]
[Source "ChessBase"]
[SourceQuality "1"]
[TimeControl "5400+30"]

1. e4 {[%emt 0:00:54]} g6 {[%emt 0:00:20]} 2. d4 {[%emt 0:01:18]} d6 {[%emt 0:00:07]} 3. Nc3 {[%emt 0:00:21]} Bg7 {[%emt 0:00:13]} 4. Nge2 {[%emt 0:00:27]} Nf6 {[%emt 0:00:54]} 5. g3 {[%emt 0:00:15]} O-O {[%emt 0:00:26]} 6. Bg2 {[%emt 0:00:15]} Nc6 {[%emt 0:00:23]} 7. O-O {[%emt 0:00:38]} e5 {[%emt 0:00:39]} 8. dxe5 {[%emt 0:00:24]} dxe5 {[%emt 0:06:09]} 9. Bg5 {[%emt 0:01:56]} Be6 {[%emt 0:23:37]} 10. Nd5 {[%emt 0:01:39]} Bxd5 {[%emt 0:03:32]} 11. exd5 {[%emt 0:00:26]} Ne7 {[%emt 0:00:20]} 12. c4 {[%emt 0:00:42]} Qd6 {[%emt 0:06:36]} 13. Nc3 {[%emt 0:01:51]} Nf5 {[%emt 0:04:20]} 14. Rc1 {[%emt 0:01:03]} b6 {[%emt 0:05:34]} 15. Nb5 {[%emt 0:02:48]} Qd7 {[%emt 0:02:05]} 16. Re1 {[%emt 0:02:45]} Nd6 {[%emt 0:01:55]} 17. Qb3 {[%emt 0:01:42]} h6 {[%emt 0:06:16]} 18. Bd2 {[%emt 0:01:04]} Rfe8 {[%emt 0:01:55]} 19. a4 {[%emt 0:01:22]} Nb7 {[%emt 0:03:41]} 20. Qc2 {[%emt 0:02:35]} a6 {[%emt 0:01:11]} 21. Nc3 {[%emt 0:00:36]} a5 {[%emt 0:00:38]} 22. Nb5 {[%emt 0:00:54]} Nd6 {[%emt 0:05:07]} 23. Na3 {[%emt 0:02:31]} e4 {[%emt 0:01:45]} 24. b3 {[%emt 0:00:35]} c6 {[%emt 0:02:09]} 25. dxc6 {[%emt 0:00:42]} Qxc6 {[%emt 0:00:07]} 26. Nb5 {[%emt 0:01:02]} Nb7 {[%emt 0:03:48]} 27. Bf4 {[%emt 0:01:12]} g5 {[%emt 0:00:43]} 28. Be3 {[%emt 0:00:22]} Rad8 {[%emt 0:00:23]} 29. Nc3 {[%emt 0:00:44]} Qe6 {[%emt 0:02:15]} 30. Rcd1 {[%emt 0:01:04]} Rxd1 {[%emt 0:00:38]} 31. Rxd1 {[%emt 0:00:17]} Ng4 {[%emt 0:00:35]} 32. Nd5 {[%emt 0:03:55]} Nxe3 {[%emt 0:00:10]} 33. fxe3 {[%emt 0:00:31]} Qg6 {[%emt 0:02:04]} 34. g4 {[%emt 0:02:35]} Nc5 {[%emt 0:00:22]} 35. Rf1 {[%emt 0:00:30]} h5 {[%emt 0:01:30]} 36. Qd1 {[%emt 0:01:32]} h4 {[%emt 0:02:59]} 37. Rf5 {[%emt 0:00:33]} Nd3 {[%emt 0:00:47]} 38. h3 {[%emt 0:02:33]} Qd6 {[%emt 0:01:18]} 39. Rxg5 {[%emt 0:03:38]} Re5 {[%emt 0:00:08]} 40. Rf5 {[%emt 0:01:41]} Bh6 {[%emt 0:02:30]} 41. Rxe5 {[%emt 0:06:20]} Qxe5 {[%emt 0:00:13]} 42. g5 {[%emt 0:03:42]} Qxg5 {[%emt 0:01:56]} 43. Qg4 {[%emt 0:00:25]} Qxg4 {[%emt 0:01:47]} 44. hxg4 {[%emt 0:00:16]} Nc5 {[%emt 0:02:13]} 45. Kf2 {[%emt 0:01:29]} Nxb3 {[%emt 0:02:06]} 46. Bxe4 {[%emt 0:00:55]} Nc5 {[%emt 0:01:29]} 47. Bc2 {[%emt 0:00:08]} Kf8 {[%emt 0:02:30]} 48. Kg2 {[%emt 0:02:00]} Bg5 {[%emt 0:00:15]} 49. Kh3 {[%emt 0:00:43]} Bd8 {[%emt 0:00:29]} 50. Kg2 {[%emt 0:03:23]} Ke8 {[%emt 0:00:37]} 51. Kf3 {[%emt 0:02:28]} Kd7 {[%emt 0:00:12]} 52. g5 {[%emt 0:00:34]} Kc6 {[%emt 0:01:07]} 53. Kg4 {[%emt 0:00:54]} h3 {[%emt 0:00:57]} 54. Kxh3 {[%emt 0:00:11]} Bxg5 {[%emt 0:00:07]} 55. Kg4 {[%emt 0:00:03]} Bd8 {[%emt 0:00:41]} 56. Nc3 {[%emt 0:02:44]} Nd7 {[%emt 0:00:19]} 57. Kf5 {[%emt 0:02:28]} Kc5 {[%emt 0:00:46]} 58. Ne4+ {[%emt 0:00:30]} Kxc4 {[%emt 0:00:24]} 59. Nd6+ {[%emt 0:00:26]} Kc3 {[%emt 0:00:28]} 60. Be4 {[%emt 0:00:24]} f6 {[%emt 0:01:00]} 61. Bc6 {[%emt 0:00:21]} Nc5 {[%emt 0:00:28]} 1/2-1/2